[Event "Early-Titled-Tuesday-Blitz-January-16-2024"]
[Site "Chess.com"]
[Date "2024.01.16"]
[Round "2"]
[White "DraningWaterHi"]
[Black "GrumbleBruno"]
[Result "0-1"]
[WhiteElo "2133"]
[BlackElo "2466"]
[TimeControl "180+1"]
[EndTime "8:18:06 PST"]
[Termination "GrumbleBruno won by checkmate"]

1. d4 {[%clk 0:03:00.9]} 1... Nf6 {[%clk 0:02:57.5]} 2. c4 {[%clk 0:02:59.4]}
2... c5 {[%clk 0:02:57.5]} 3. d5 {[%clk 0:02:58.5]} 3... Ne4 {[%clk 0:02:57.3]}
4. g3 {[%clk 0:02:51.6]} 4... Qa5+ {[%clk 0:02:55.7]} 5. Nd2 {[%clk 0:02:51.6]}
5... Nd6 {[%clk 0:02:55.5]} 6. e3 {[%clk 0:02:41.3]} 6... g6 {[%clk 0:02:55.2]}
7. Qc2 {[%clk 0:02:37]} 7... Bg7 {[%clk 0:02:54.8]} 8. Bg2 {[%clk 0:02:37.2]}
8... O-O {[%clk 0:02:47.8]} 9. Ne2 {[%clk 0:02:37]} 9... Na6 {[%clk 0:02:44.1]}
10. O-O {[%clk 0:02:30.5]} 10... b5 {[%clk 0:02:44]} 11. cxb5 {[%clk 0:02:23.5]}
11... Nxb5 {[%clk 0:02:43.5]} 12. Nc4 {[%clk 0:02:23.3]} 12... Qd8 {[%clk
0:02:42.4]} 13. Bd2 {[%clk 0:02:19.9]} 13... d6 {[%clk 0:02:40.7]} 14. Ba5
{[%clk 0:02:17.2]} 14... Qe8 {[%clk 0:02:34.5]} 15. a4 {[%clk 0:02:17.4]} 15...
Nbc7 {[%clk 0:02:33.4]} 16. Nc3 {[%clk 0:02:08.3]} 16... Bd7 {[%clk 0:02:32.8]}
17. e4 {[%clk 0:02:06.5]} 17... Nb4 {[%clk 0:02:31.8]} 18. Bxb4 {[%clk
0:02:01.8]} 18... cxb4 {[%clk 0:02:25.5]} 19. Nd1 {[%clk 0:02:01.8]} 19... Qc8
{[%clk 0:02:22.5]} 20. Rc1 {[%clk 0:01:57.9]} 20... Na6 {[%clk 0:02:12.9]} 21.
b3 {[%clk 0:01:56.9]} 21... Nc5 {[%clk 0:02:12.7]} 22. Ndb2 {[%clk 0:01:55.8]}
22... Qa6 {[%clk 0:02:05.4]} 23. Nd3 {[%clk 0:01:55.4]} 23... Rac8 {[%clk
0:02:03.3]} 24. Nxb4 {[%clk 0:01:55.4]} 24... Qb7 {[%clk 0:02:01.9]} 25. Nd3
{[%clk 0:01:53.1]} 25... Qxb3 {[%clk 0:02:00.3]} 26. Nxc5 {[%clk 0:01:53.4]}
26... Qxc2 {[%clk 0:02:00.3]} 27. Rxc2 {[%clk 0:01:53.8]} 27... Rxc5 {[%clk
0:01:59.7]} 28. Rfc1 {[%clk 0:01:49.2]} 28... Rfc8 {[%clk 0:01:59.3]} 29. Bf1
{[%clk 0:01:44.8]} 29... Bxa4 {[%clk 0:01:58.5]} 30. Ra2 {[%clk 0:01:34.1]}
30... Bb3 {[%clk 0:01:58.5]} 31. Rxa7 {[%clk 0:01:34.5]} 31... Bxc4 {[%clk
0:01:58.4]} 32. Bxc4 {[%clk 0:01:33.5]} 32... Rxc4 {[%clk 0:01:58.8]} 33. Rxc4
{[%clk 0:01:34.4]} 33... Rxc4 {[%clk 0:01:58.7]} 34. Rxe7 {[%clk 0:01:35]} 34...
Bf8 {[%clk 0:01:55.9]} 35. Re8 {[%clk 0:01:34.9]} 35... f6 {[%clk 0:01:56.2]}
36. f3 {[%clk 0:01:35]} 36... Kf7 {[%clk 0:01:56.6]} 37. Ra8 {[%clk 0:01:34.6]}
37... f5 {[%clk 0:01:55.9]} 38. exf5 {[%clk 0:01:32.6]} 38... gxf5 {[%clk
0:01:55.9]} 39. Ra7+ {[%clk 0:01:33.1]} 39... Be7 {[%clk 0:01:55.6]} 40. Kg2
{[%clk 0:01:28.4]} 40... Rc5 {[%clk 0:01:55.2]} 41. Kh3 {[%clk 0:01:27.8]} 41...
Rxd5 {[%clk 0:01:55.4]} 42. g4 {[%clk 0:01:28.3]} 42... fxg4+ {[%clk 0:01:53.5]}
43. Kxg4 {[%clk 0:01:28.3]} 43... Rg5+ {[%clk 0:01:51.6]} 44. Kf4 {[%clk
0:01:27.6]} 44... Rh5 {[%clk 0:01:51]} 45. Kg3 {[%clk 0:01:27]} 45... Ke6 {[%clk
0:01:50.7]} 46. Ra6 {[%clk 0:01:26]} 46... Rg5+ {[%clk 0:01:46.3]} 47. Kf4
{[%clk 0:01:25.8]} 47... Rg6 {[%clk 0:01:45.9]} 48. h3 {[%clk 0:01:25.3]} 48...
Kf7 {[%clk 0:01:44.3]} 49. Ra7 {[%clk 0:01:24.9]} 49... Re6 {[%clk 0:01:41.7]}
50. Kg4 {[%clk 0:01:23.6]} 50... d5 {[%clk 0:01:41]} 51. Ra5 {[%clk 0:01:22.9]}
51... Rd6 {[%clk 0:01:40.6]} 52. Ra3 {[%clk 0:01:21.8]} 52... Kf6 {[%clk
0:01:36.4]} 53. Rd3 {[%clk 0:01:19.6]} 53... Bf8 {[%clk 0:01:34.2]} 54. f4
{[%clk 0:01:19]} 54... Bh6 {[%clk 0:01:34]} 55. h4 {[%clk 0:01:17.6]} 55... Ke6
{[%clk 0:01:33]} 56. h5 {[%clk 0:01:16]} 56... Kf6 {[%clk 0:01:32.8]} 57. Rd4
{[%clk 0:01:15.8]} 57... Rd7 {[%clk 0:01:31.5]} 58. Rd3 {[%clk 0:01:14]} 58...
d4 {[%clk 0:01:31.3]} 59. Rd1 {[%clk 0:01:05.2]} 59... d3 {[%clk 0:01:30]} 60.
Rd2 {[%clk 0:01:05.4]} 60... Rd4 {[%clk 0:01:28.8]} 61. Kf3 {[%clk 0:01:03.2]}
61... Rxf4+ {[%clk 0:01:27.3]} 62. Kg3 {[%clk 0:01:02.7]} 62... Rd4 {[%clk
0:01:27.5]} 63. Rd1 {[%clk 0:01:02.2]} 63... d2 {[%clk 0:01:27.7]} 64. Kf3
{[%clk 0:01:02.8]} 64... Rd6 {[%clk 0:01:25.1]} 65. Ke2 {[%clk 0:00:59.7]} 65...
Bg5 {[%clk 0:01:24.8]} 66. Rf1+ {[%clk 0:00:51.9]} 66... Kg7 {[%clk 0:01:24.6]}
67. Kd1 {[%clk 0:00:52.8]} 67... Kh6 {[%clk 0:01:24]} 68. Rh1 {[%clk 0:00:51.1]}
68... Rc6 {[%clk 0:01:24]} 69. Ke2 {[%clk 0:00:50.8]} 69... Rc1 {[%clk
0:01:23.7]} 70. Rd1 {[%clk 0:00:49.9]} 70... Kxh5 {[%clk 0:01:23.9]} 71. Rg1
{[%clk 0:00:43.1]} 71... Rxg1 {[%clk 0:01:21.2]} 72. Kf2 {[%clk 0:00:44]} 72...
Rh1 {[%clk 0:01:15.9]} 73. Kg2 {[%clk 0:00:44.1]} 73... d1=Q {[%clk 0:01:15.7]}
74. Kg3 {[%clk 0:00:43.7]} 74... Rg1+ {[%clk 0:01:14.7]} 75. Kh3 {[%clk
0:00:43.4]} 75... Qf3+ {[%clk 0:01:14.7]} 76. Kh2 {[%clk 0:00:43.6]} 76... Qg2#
{[%clk 0:01:14.9]} 0-1

[Event "Early-Titled-Tuesday-Blitz-January-16-2024"]
[Site "Chess.com"]
[Date "2024.01.16"]
[Round "2"]
[White "RodokininEV"]
[Black "tptagain"]
[Result "0-1"]
[WhiteElo "2612"]
[BlackElo "2957"]
[TimeControl "180+1"]
[EndTime "8:18:07 PST"]
[Termination "tptagain won by resignation"]

1. Nf3 {[%clk 0:02:58.2]} 1... d5 {[%clk 0:02:59.7]} 2. g3 {[%clk 0:02:57.7]}
2... e6 {[%clk 0:02:58.1]} 3. Bg2 {[%clk 0:02:56.6]} 3... b5 {[%clk 0:02:58.6]}
4. O-O {[%clk 0:02:54.9]} 4... Nf6 {[%clk 0:02:59.1]} 5. d3 {[%clk 0:02:52.3]}
5... Be7 {[%clk 0:02:59.1]} 6. Nbd2 {[%clk 0:02:53]} 6... O-O {[%clk 0:02:58.9]}
7. e4 {[%clk 0:02:53.4]} 7... c5 {[%clk 0:02:57.3]} 8. Re1 {[%clk 0:02:52]} 8...
h6 {[%clk 0:02:54.1]} 9. e5 {[%clk 0:02:50.6]} 9... Nh7 {[%clk 0:02:53.6]} 10.
Nf1 {[%clk 0:02:51.5]} 10... a5 {[%clk 0:02:53.5]} 11. h4 {[%clk 0:02:51.2]}
11... a4 {[%clk 0:02:53.2]} 12. N1h2 {[%clk 0:02:50]} 12... Nc6 {[%clk
0:02:50.7]} 13. Ng4 {[%clk 0:02:48.8]} 13... Re8 {[%clk 0:02:48.2]} 14. Bf4
{[%clk 0:02:45.9]} 14... a3 {[%clk 0:02:48.5]} 15. b3 {[%clk 0:02:45.4]} 15...
b4 {[%clk 0:02:48.5]} 16. Qd2 {[%clk 0:02:40.9]} 16... Na7 {[%clk 0:02:43.9]}
17. Bxh6 {[%clk 0:02:33.6]} 17... gxh6 {[%clk 0:02:42.5]} 18. Nxh6+ {[%clk
0:02:34.1]} 18... Kg7 {[%clk 0:02:37.5]} 19. Ng4 {[%clk 0:02:33.7]} 19... Rh8
{[%clk 0:01:51]} 20. Qh6+ {[%clk 0:02:09.1]} 20... Kg8 {[%clk 0:01:50.8]} 21.
Qf4 {[%clk 0:02:03.9]} 21... Bf8 {[%clk 0:01:26.9]} 22. Ng5 {[%clk 0:01:48.9]}
22... Nxg5 {[%clk 0:01:26.8]} 23. hxg5 {[%clk 0:01:48.9]} 23... Bg7 {[%clk
0:01:22.7]} 24. Bf3 {[%clk 0:01:38.5]} 24... Nc6 {[%clk 0:01:15.3]} 25. Nf6+
{[%clk 0:01:31.6]} 25... Kf8 {[%clk 0:01:12.7]} 26. g6 {[%clk 0:01:24.4]} 26...
Bxf6 {[%clk 0:01:08.2]} 27. exf6 {[%clk 0:01:13.3]} 27... fxg6 {[%clk
0:01:08.4]} 28. Qg5 {[%clk 0:01:04.7]} 28... Kf7 {[%clk 0:01:04.8]} 29. Qf4
{[%clk 0:00:37.2]} 29... Ra7 {[%clk 0:00:59.1]} 30. Kg2 {[%clk 0:00:32.4]} 30...
Qxf6 {[%clk 0:00:53.3]} 31. Qd2 {[%clk 0:00:25.1]} 31... Nd4 {[%clk 0:00:49.4]}
32. Bg4 {[%clk 0:00:25.6]} 32... Kf8 {[%clk 0:00:43]} 33. Re3 {[%clk 0:00:23.5]}
33... Rah7 {[%clk 0:00:42.6]} 34. Rg1 {[%clk 0:00:16.9]} 34... Rh2+ {[%clk
0:00:38.1]} 35. Kf1 {[%clk 0:00:17.1]} 35... Kg7 {[%clk 0:00:37.3]} 36. Qe1
{[%clk 0:00:14.1]} 36... Rf8 {[%clk 0:00:34.9]} 37. f4 {[%clk 0:00:13.1]} 37...
Nxc2 {[%clk 0:00:33.1]} 38. Qc1 {[%clk 0:00:12.7]} 38... Nxe3+ {[%clk
0:00:31.9]} 39. Qxe3 {[%clk 0:00:13.6]} 39... Qa1+ {[%clk 0:00:29.3]} 40. Qe1
{[%clk 0:00:11]} 40... Qxe1+ {[%clk 0:00:28.9]} 41. Kxe1 {[%clk 0:00:11.9]}
41... Rxa2 {[%clk 0:00:28.8]} 0-1

[Event "Early-Titled-Tuesday-Blitz-January-16-2024"]
[Site "Chess.com"]
[Date "2024.01.16"]
[Round "2"]
[White "PavelShkapenko"]
[Black "LionelMessiFCB"]
[Result "1-0"]
[WhiteElo "2782"]
[BlackElo "2508"]
[TimeControl "180+1"]
[EndTime "8:18:07 PST"]
[Termination "PavelShkapenko won by resignation"]

1. e4 {[%clk 0:02:59.4]} 1... c5 {[%clk 0:02:59.5]} 2. c3 {[%clk 0:02:59.4]}
2... d5 {[%clk 0:02:56.3]} 3. exd5 {[%clk 0:02:59.6]} 3... Qxd5 {[%clk
0:02:57.2]} 4. d4 {[%clk 0:03:00.3]} 4... Nc6 {[%clk 0:02:56.6]} 5. Nf3 {[%clk
0:03:00.9]} 5... Nf6 {[%clk 0:02:50.1]} 6. Be2 {[%clk 0:02:57.9]} 6... Bf5
{[%clk 0:02:44.6]} 7. c4 {[%clk 0:02:20.6]} 7... Qe4 {[%clk 0:02:11.9]} 8. d5
{[%clk 0:01:50.2]} 8... Nd4 {[%clk 0:02:10.2]} 9. Nxd4 {[%clk 0:01:46.8]} 9...
cxd4 {[%clk 0:02:05.5]} 10. O-O {[%clk 0:01:46.4]} 10... d3 {[%clk 0:02:04.1]}
11. Bf3 {[%clk 0:01:44.3]} 11... Qxc4 {[%clk 0:02:03.4]} 12. Nc3 {[%clk
0:01:39.3]} 12... g6 {[%clk 0:01:29.3]} 13. Bg5 {[%clk 0:01:31.2]} 13... Bg7
{[%clk 0:01:28.2]} 14. Re1 {[%clk 0:01:31.4]} 14... O-O {[%clk 0:01:12.3]} 15.
Rxe7 {[%clk 0:01:30.3]} 15... h6 {[%clk 0:01:12]} 16. Bd2 {[%clk 0:01:26.4]}
16... b5 {[%clk 0:01:10.6]} 17. Qb3 {[%clk 0:01:14]} 17... g5 {[%clk 0:00:58.4]}
18. h3 {[%clk 0:01:13.4]} 18... Rfb8 {[%clk 0:00:55.1]} 19. d6 {[%clk
0:01:12.5]} 19... Qxb3 {[%clk 0:00:50.8]} 20. axb3 {[%clk 0:01:12]} 20... b4
{[%clk 0:00:51.1]} 21. Na4 {[%clk 0:01:09.2]} 21... Bf8 {[%clk 0:00:50.1]} 22.
Re5 {[%clk 0:01:04.1]} 22... Bg6 {[%clk 0:00:42.1]} 23. Bxa8 {[%clk 0:01:03.7]}
23... Bxd6 {[%clk 0:00:40.7]} 24. Rd5 {[%clk 0:00:54]} 24... Be7 {[%clk
0:00:29.9]} 25. Bc6 {[%clk 0:00:47.3]} 25... Nxd5 {[%clk 0:00:26.6]} 26. Bxd5
{[%clk 0:00:47.1]} 26... Rd8 {[%clk 0:00:24.7]} 27. Bc4 {[%clk 0:00:46.7]} 27...
Bf6 {[%clk 0:00:23.5]} 28. Bxb4 {[%clk 0:00:40.8]} 28... Bh5 {[%clk 0:00:22.3]}
29. Bd2 {[%clk 0:00:37.2]} 29... g4 {[%clk 0:00:21.9]} 30. hxg4 {[%clk
0:00:36.7]} 30... Bxg4 {[%clk 0:00:21.6]} 31. Nc3 {[%clk 0:00:37.2]} 31... Bg5
{[%clk 0:00:19.7]} 32. Bxg5 {[%clk 0:00:35.3]} 32... hxg5 {[%clk 0:00:20.6]} 33.
f3 {[%clk 0:00:35.9]} 33... Be6 {[%clk 0:00:20.3]} 34. Bxe6 {[%clk 0:00:35.3]}
34... fxe6 {[%clk 0:00:20.9]} 35. Ne4 {[%clk 0:00:35.7]} 35... Rb8 {[%clk
0:00:20.1]} 36. Nd2 {[%clk 0:00:34.9]} 36... Rb7 {[%clk 0:00:20.2]} 37. Rc1
{[%clk 0:00:33.9]} 37... Kf7 {[%clk 0:00:19.9]} 38. Rc3 {[%clk 0:00:33.9]} 1-0

[Event "Early-Titled-Tuesday-Blitz-January-16-2024"]
[Site "Chess.com"]
[Date "2024.01.16"]
[Round "2"]
[White "ChessGiantYouTube"]
[Black "RaugintaBulba"]
[Result "1/2-1/2"]
[WhiteElo "2188"]
[BlackElo "2472"]
[TimeControl "180+1"]
[EndTime "8:18:07 PST"]
[Termination "Game drawn by 50-move rule"]

1. g3 {[%clk 0:03:00.9]} 1... Nf6 {[%clk 0:02:44.3]} 2. Bg2 {[%clk 0:03:00.9]}
2... g6 {[%clk 0:02:45.2]} 3. d3 {[%clk 0:03:00.9]} 3... Bg7 {[%clk 0:02:45.7]}
4. e3 {[%clk 0:03:01.4]} 4... O-O {[%clk 0:02:46.1]} 5. h3 {[%clk 0:03:01.6]}
5... d5 {[%clk 0:02:46.8]} 6. Ne2 {[%clk 0:03:02.1]} 6... c5 {[%clk 0:02:47.3]}
7. Nd2 {[%clk 0:02:58.5]} 7... Nc6 {[%clk 0:02:44.7]} 8. O-O {[%clk 0:02:51.2]}
8... e5 {[%clk 0:02:45.1]} 9. b3 {[%clk 0:02:51]} 9... Be6 {[%clk 0:02:27.3]}
10. Bb2 {[%clk 0:02:50.2]} 10... Qd7 {[%clk 0:02:26.4]} 11. Kh2 {[%clk
0:02:40.6]} 11... Ne8 {[%clk 0:02:14.7]} 12. Rb1 {[%clk 0:02:34.2]} 12... f5
{[%clk 0:02:09]} 13. f4 {[%clk 0:02:30.7]} 13... Nc7 {[%clk 0:01:55.3]} 14. Nf3
{[%clk 0:02:27]} 14... e4 {[%clk 0:01:43]} 15. Ng5 {[%clk 0:02:25.9]} 15... Bxb2
{[%clk 0:01:42.7]} 16. Rxb2 {[%clk 0:02:25.8]} 16... Rad8 {[%clk 0:01:40]} 17.
d4 {[%clk 0:02:12.9]} 17... cxd4 {[%clk 0:01:36.4]} 18. Nxd4 {[%clk 0:02:12.7]}
18... Nxd4 {[%clk 0:01:34.3]} 19. Qxd4 {[%clk 0:02:13.6]} 19... Qg7 {[%clk
0:01:31.2]} 20. c3 {[%clk 0:01:58.2]} 20... Qxd4 {[%clk 0:01:22.4]} 21. cxd4
{[%clk 0:01:57.4]} 21... Bd7 {[%clk 0:01:10]} 22. h4 {[%clk 0:01:57.5]} 22...
Rc8 {[%clk 0:01:00.4]} 23. Rc1 {[%clk 0:01:57.3]} 23... Ne6 {[%clk 0:00:59.3]}
24. Rbc2 {[%clk 0:01:55.1]} 24... Rxc2 {[%clk 0:00:53.1]} 25. Rxc2 {[%clk
0:01:54.8]} 25... Rc8 {[%clk 0:00:53.7]} 26. Rxc8+ {[%clk 0:01:55.1]} 26... Bxc8
{[%clk 0:00:54.6]} 27. Bf1 {[%clk 0:01:53.4]} 27... a6 {[%clk 0:00:52.5]} 28.
Nxe6 {[%clk 0:01:49.7]} 28... Bxe6 {[%clk 0:00:53.4]} 29. a3 {[%clk 0:01:48.4]}
29... Kf7 {[%clk 0:00:53.6]} 30. Kg2 {[%clk 0:01:46.6]} 30... Ke7 {[%clk
0:00:52.7]} 31. Kf2 {[%clk 0:01:47]} 31... Kd6 {[%clk 0:00:53.3]} 32. Ke1 {[%clk
0:01:47.5]} 32... b5 {[%clk 0:00:50.1]} 33. Kd2 {[%clk 0:01:47.6]} 33... Kc6
{[%clk 0:00:50.6]} 34. Kc3 {[%clk 0:01:48.1]} 34... Kb6 {[%clk 0:00:50.4]} 35.
Be2 {[%clk 0:01:45.5]} 35... h5 {[%clk 0:00:47.8]} 36. b4 {[%clk 0:01:38.7]}
36... Bd7 {[%clk 0:00:47.7]} 37. Kb3 {[%clk 0:01:37.4]} 37... Bc8 {[%clk
0:00:48.1]} 38. Kc3 {[%clk 0:01:37.5]} 38... Bb7 {[%clk 0:00:48.6]} 39. Kb3
{[%clk 0:01:36.5]} 39... Ba8 {[%clk 0:00:48.9]} 40. a4 {[%clk 0:01:37]} 40...
Bc6 {[%clk 0:00:46.7]} 41. a5+ {[%clk 0:01:35.7]} 41... Kc7 {[%clk 0:00:46.2]}
42. Kc3 {[%clk 0:01:36.2]} 42... Kd6 {[%clk 0:00:46.8]} 43. Kb3 {[%clk
0:01:36.4]} 43... Ke7 {[%clk 0:00:47.6]} 44. Kc3 {[%clk 0:01:36.9]} 44... Kf6
{[%clk 0:00:48.3]} 45. Kb3 {[%clk 0:01:37.5]} 45... Kg7 {[%clk 0:00:49]} 46. Kc3
{[%clk 0:01:38]} 46... Kh6 {[%clk 0:00:49.5]} 47. Kb3 {[%clk 0:01:38.5]} 47...
Kh7 {[%clk 0:00:50.1]} 48. Kc3 {[%clk 0:01:39]} 48... Kg8 {[%clk 0:00:50.7]} 49.
Kb3 {[%clk 0:01:39.5]} 49... Kf8 {[%clk 0:00:51.4]} 50. Kc3 {[%clk 0:01:40]}
50... Ke8 {[%clk 0:00:52.1]} 51. Kb3 {[%clk 0:01:40.5]} 51... Kd8 {[%clk
0:00:52.8]} 52. Kc3 {[%clk 0:01:41]} 52... Kc8 {[%clk 0:00:53.5]} 53. Kb3 {[%clk
0:01:41.5]} 53... Kb8 {[%clk 0:00:54.2]} 54. Kc3 {[%clk 0:01:41.7]} 54... Ka8
{[%clk 0:00:54.9]} 55. Kb3 {[%clk 0:01:42.2]} 55... Ka7 {[%clk 0:00:55.5]} 56.
Kc3 {[%clk 0:01:43.1]} 56... Kb7 {[%clk 0:00:56.1]} 57. Kb3 {[%clk 0:01:43.5]}
57... Kc7 {[%clk 0:00:56.8]} 58. Kc3 {[%clk 0:01:44]} 58... Kd7 {[%clk
0:00:57.6]} 59. Kb3 {[%clk 0:01:44.5]} 59... Ke7 {[%clk 0:00:58.3]} 60. Kc3
{[%clk 0:01:45]} 60... Kf7 {[%clk 0:00:59.1]} 61. Kb3 {[%clk 0:01:45.4]} 61...
Kg7 {[%clk 0:00:59.8]} 62. Kc3 {[%clk 0:01:36.6]} 62... Kh6 {[%clk 0:01:00.7]}
63. Kb3 {[%clk 0:01:33.7]} 63... Bb7 {[%clk 0:00:59.9]} 64. Kc3 {[%clk
0:01:33.9]} 64... Ba8 {[%clk 0:00:58.8]} 65. Kb3 {[%clk 0:01:34]} 65... Kg7
{[%clk 0:00:57.6]} 66. Kc3 {[%clk 0:01:34.3]} 66... Kf6 {[%clk 0:00:57.9]} 67.
Kb3 {[%clk 0:01:34.7]} 67... Ke7 {[%clk 0:00:58.5]} 68. Kc3 {[%clk 0:01:35.2]}
68... Kd6 {[%clk 0:00:59.2]} 69. Kb3 {[%clk 0:01:35.7]} 69... Kc7 {[%clk
0:00:59.9]} 70. Kc3 {[%clk 0:01:36.3]} 70... Kb8 {[%clk 0:01:00.5]} 71. Kb3
{[%clk 0:01:36.8]} 71... Kc8 {[%clk 0:01:01.1]} 72. Kc3 {[%clk 0:01:37.4]} 72...
Kd8 {[%clk 0:01:01.6]} 73. Kb3 {[%clk 0:01:37.4]} 73... Ke8 {[%clk 0:01:02.1]}
74. Kc3 {[%clk 0:01:37.9]} 74... Kf8 {[%clk 0:01:02.3]} 75. Kb3 {[%clk
0:01:38.5]} 75... Kg7 {[%clk 0:01:02.8]} 76. Kc3 {[%clk 0:01:39]} 76... Kh8
{[%clk 0:01:03.4]} 77. Kb3 {[%clk 0:01:39.5]} 77... Kh7 {[%clk 0:01:04.1]} 78.
Kc3 {[%clk 0:01:39.9]} 78... Kh6 {[%clk 0:01:04.7]} 79. Kb3 {[%clk 0:01:40.4]}
79... Bb7 {[%clk 0:01:03.8]} 80. Kc3 {[%clk 0:01:40.8]} 80... Bc8 {[%clk
0:01:03.4]} 81. Kb3 {[%clk 0:01:41.1]} 81... Be6 {[%clk 0:01:02.6]} 82. Kc3
{[%clk 0:01:39.5]} 82... Kg7 {[%clk 0:00:55.5]} 83. Kb3 {[%clk 0:01:38.1]} 83...
Kf8 {[%clk 0:00:55.9]} 84. Kc3 {[%clk 0:01:38.8]} 84... Ke7 {[%clk 0:00:56.3]}
85. Kb3 {[%clk 0:01:39.1]} 85... Kd8 {[%clk 0:00:56.9]} 86. Kc3 {[%clk
0:01:39.6]} 86... Bg8 {[%clk 0:00:56.5]} 87. Kb3 {[%clk 0:01:38.4]} 87... Bh7
{[%clk 0:00:56.4]} 88. Kc3 {[%clk 0:01:38.5]} 88... Kc8 {[%clk 0:00:54.9]} 89.
Kb3 {[%clk 0:01:38.8]} 89... Kd7 {[%clk 0:00:55.3]} 90. Kc3 {[%clk 0:01:39.3]}
90... Kd6 {[%clk 0:00:55.5]} 91. Kb3 {[%clk 0:01:39.6]} 1/2-1/2

[Event "Early-Titled-Tuesday-Blitz-January-16-2024"]
[Site "Chess.com"]
[Date "2024.01.16"]
[Round "2"]
[White "TrompeterImEther"]
[Black "Darkbluelord"]
[Result "1-0"]
[WhiteElo "2482"]
[BlackElo "2179"]
[TimeControl "180+1"]
[EndTime "8:18:10 PST"]
[Termination "TrompeterImEther won by checkmate"]

1. e4 {[%clk 0:03:00.9]} 1... c5 {[%clk 0:02:59.5]} 2. Nf3 {[%clk 0:03:01.2]}
2... d6 {[%clk 0:02:59.8]} 3. d4 {[%clk 0:03:01.6]} 3... cxd4 {[%clk 0:03:00.7]}
4. Nxd4 {[%clk 0:03:02.3]} 4... Nf6 {[%clk 0:03:01.2]} 5. Nc3 {[%clk 0:03:02.8]}
5... g6 {[%clk 0:03:01.9]} 6. f3 {[%clk 0:03:02.7]} 6... Bg7 {[%clk 0:03:02.5]}
7. Be3 {[%clk 0:03:03.4]} 7... O-O {[%clk 0:03:03.2]} 8. Qd2 {[%clk 0:03:03.7]}
8... Nc6 {[%clk 0:03:03.9]} 9. Bc4 {[%clk 0:03:01.6]} 9... Bd7 {[%clk
0:03:02.9]} 10. O-O-O {[%clk 0:03:01.9]} 10... Ne5 {[%clk 0:03:03.2]} 11. Bb3
{[%clk 0:03:02.1]} 11... Qa5 {[%clk 0:03:04.1]} 12. Kb1 {[%clk 0:03:02.3]} 12...
Rfc8 {[%clk 0:03:04.3]} 13. g4 {[%clk 0:03:02.7]} 13... b5 {[%clk 0:03:02.1]}
14. h4 {[%clk 0:02:58.6]} 14... Nc4 {[%clk 0:02:43.2]} 15. Bxc4 {[%clk
0:02:58.2]} 15... bxc4 {[%clk 0:02:44.1]} 16. h5 {[%clk 0:02:56]} 16... Rab8
{[%clk 0:02:42.9]} 17. hxg6 {[%clk 0:02:50.6]} 17... fxg6 {[%clk 0:02:42.3]} 18.
Ka1 {[%clk 0:02:36.5]} 18... Rb6 {[%clk 0:02:20.2]} 19. g5 {[%clk 0:02:20.2]}
19... Nh5 {[%clk 0:02:10.7]} 20. Nd5 {[%clk 0:02:20.2]} 20... c3 {[%clk
0:01:50.8]} 21. Nxc3 {[%clk 0:02:06.8]} 21... Rcb8 {[%clk 0:01:44.2]} 22. Nb3
{[%clk 0:02:03.8]} 22... Qe5 {[%clk 0:01:10.6]} 23. Bxb6 {[%clk 0:02:01.9]}
23... Rxb6 {[%clk 0:01:09.7]} 24. Qd5+ {[%clk 0:02:02.5]} 24... Be6 {[%clk
0:01:07]} 25. Qxe5 {[%clk 0:02:02.1]} 25... Bxe5 {[%clk 0:01:07.2]} 26. Nd5
{[%clk 0:02:02.3]} 26... Bxd5 {[%clk 0:01:01.3]} 27. Rxd5 {[%clk 0:02:01.9]}
27... Nf4 {[%clk 0:01:01.6]} 28. Rd2 {[%clk 0:02:01.5]} 28... a5 {[%clk
0:00:59.4]} 29. c3 {[%clk 0:02:01.5]} 29... a4 {[%clk 0:00:58.7]} 30. Nd4 {[%clk
0:02:01.8]} 30... Rb8 {[%clk 0:00:49.7]} 31. Nc6 {[%clk 0:02:01.3]} 31... Rf8
{[%clk 0:00:46.4]} 32. Nxe5 {[%clk 0:02:01.3]} 32... dxe5 {[%clk 0:00:47.3]} 33.
b4 {[%clk 0:01:49.4]} 33... Ne6 {[%clk 0:00:43.7]} 34. Rg1 {[%clk 0:01:39.4]}
34... Rxf3 {[%clk 0:00:42.2]} 35. Kb2 {[%clk 0:01:39.1]} 35... Re3 {[%clk
0:00:31.4]} 36. Rg4 {[%clk 0:01:39.2]} 36... Nf4 {[%clk 0:00:20.9]} 37. b5
{[%clk 0:01:35]} 37... Nd3+ {[%clk 0:00:20.1]} 38. Ka3 {[%clk 0:01:26.4]} 38...
Nc5 {[%clk 0:00:19.9]} 39. Kb4 {[%clk 0:01:22]} 39... Nxe4 {[%clk 0:00:20]} 40.
Rd8+ {[%clk 0:01:22]} 40... Kf7 {[%clk 0:00:19.7]} 41. b6 {[%clk 0:01:22.1]}
41... Re2 {[%clk 0:00:18.4]} 42. b7 {[%clk 0:01:18.7]} 42... Rb2+ {[%clk
0:00:18.5]} 43. Ka3 {[%clk 0:01:18.4]} 43... Rxb7 {[%clk 0:00:19.4]} 44. Rxe4
{[%clk 0:01:18.5]} 44... Ke6 {[%clk 0:00:18.5]} 45. Rc8 {[%clk 0:01:13.4]} 45...
Rb1 {[%clk 0:00:18]} 46. Rc5 {[%clk 0:01:13.4]} 46... Rc1 {[%clk 0:00:16.1]} 47.
Rcxe5+ {[%clk 0:01:13.8]} 47... Kd6 {[%clk 0:00:15.2]} 48. Rxe7 {[%clk
0:01:11.7]} 48... Rxc3+ {[%clk 0:00:14.8]} 49. Kxa4 {[%clk 0:01:12.4]} 49... Rg3
{[%clk 0:00:15.3]} 50. R4e6+ {[%clk 0:01:12.8]} 50... Kd5 {[%clk 0:00:15.6]} 51.
Re5+ {[%clk 0:01:13]} 51... Kd6 {[%clk 0:00:15.3]} 52. R7e6+ {[%clk 0:01:11.1]}
52... Kd7 {[%clk 0:00:15.1]} 53. Ra6 {[%clk 0:01:11.8]} 53... Rg4+ {[%clk
0:00:14.4]} 54. Kb5 {[%clk 0:01:11.5]} 54... Rg1 {[%clk 0:00:14.3]} 55. Rd5+
{[%clk 0:01:09.3]} 55... Kc7 {[%clk 0:00:14]} 56. Ra7+ {[%clk 0:01:09.5]} 56...
Kb8 {[%clk 0:00:14.3]} 57. Rxh7 {[%clk 0:01:10.4]} 57... Rb1+ {[%clk 0:00:14.2]}
58. Kc6 {[%clk 0:01:11.1]} 58... Rc1+ {[%clk 0:00:14.6]} 59. Rc5 {[%clk
0:01:11.7]} 59... Re1 {[%clk 0:00:12.7]} 60. Rb5+ {[%clk 0:01:10.3]} 60... Ka8
{[%clk 0:00:12.8]} 61. Rh8+ {[%clk 0:01:10.7]} 61... Ka7 {[%clk 0:00:13.2]} 62.
Rb7+ {[%clk 0:01:11.3]} 62... Ka6 {[%clk 0:00:13.1]} 63. Ra8# {[%clk 0:01:12.2]}
1-0